fUSD/lending_fUSD_20250414
["ID","MTS","AMOUNT","RATE_DAILY","PERIOD"]
[357958532,1744619443287,-500.0,0.00019178,2]
[357958533,1744619443296,-500.0,0.00019178,2]
[357958534,1744619443305,-500.0,0.00019178,2]
[357958535,1744619443315,-500.0,0.00019178,2]
[357958536,1744619443324,-500.0,0.00019178,2]
[357958537,1744619443333,-500.0,0.00019178,2]
[357958538,1744619443343,-500.0,0.00019178,2]
[357958539,1744619443352,-500.0,0.00019178,2]
[357958540,1744619443362,-563.18937279,0.00019178,2]
[357958541,1744619443371,-500.0,0.00019178,2]
[357958542,1744619443380,-500.0,0.00019178,2]
[357958543,1744619443390,-500.0,0.00019178,2]
[357958544,1744619443399,-500.0,0.00019178,2]
[357958545,1744619443408,-500.0,0.00019178,2]
[357958546,1744619443417,-500.0,0.00019178,2]
[357958547,1744619443427,-500.0,0.00019178,2]
[357958548,1744619443436,-500.0,0.00019178,2]
[357958549,1744619443446,-500.0,0.00019178,2]
[357958550,1744619443456,-500.0,0.00019178,2]
[357958551,1744619443466,-500.0,0.00019178,2]
[357958552,1744619443476,-500.0,0.00019178,2]
[357958553,1744619443486,-557.62825039,0.00019178,2]
[357958554,1744619443497,-500.0,0.00019178,2]
[357958555,1744619443507,-323.57847012,0.00019178,2]
[357958556,1744619443517,-500.0,0.00019178,2]
[357958557,1744619443527,-1157.24,0.00019178,2]
[357958558,1744619443536,-500.0,0.00019178,2]
[357958559,1744619443545,-500.0,0.00019178,2]
[357958560,1744619443555,-500.0,0.00019178,2]
[357958561,1744619443564,-500.0,0.00019178,2]
[357958562,1744619443574,-500.0,0.00019178,2]
[357958563,1744619443584,-783.41,0.00019178,2]
[357958564,1744619443593,-500.0,0.00019178,2]
[357958565,1744619443603,-500.0,0.00019178,2]
[357958566,1744619443613,-574.57803976,0.00019178,2]
[357958567,1744619443623,-500.0,0.00019178,2]
[357958568,1744619443632,-528.88500928,0.00019178,2]
[357958569,1744619443642,-500.0,0.00019178,2]
[357958570,1744619443651,-500.0,0.00019178,2]
[357958571,1744619443661,-566.48,0.00019178,2]
[357958572,1744619443670,-500.0,0.00019178,2]
[357958573,1744619443680,-500.0,0.00019178,2]
[357958574,1744619443689,-500.0,0.00019178,2]
[357958575,1744619443699,-499.66359185,0.00019178,2]
[357958576,1744619443708,-500.0,0.00019178,2]
[357958577,1744619443718,-500.0,0.00019178,2]
[357958578,1744619443727,-257.34420482,0.00019178,2]
[357958579,1744619443831,-242.65579518,0.00019178,2]
[357958580,1744619443841,-227.61431119,0.00019178,2]
[357958581,1744619443857,-272.38568881,0.00019178,2]
[357958582,1744619443868,-1271.67,0.00019178,2]
[357958583,1744619443877,-500.0,0.00019178,2]
[357958584,1744619443886,-511.98199353,0.00019178,2]
[357958585,1744619443895,-500.0,0.00019178,2]
[357958586,1744619443906,-600.0,0.00019178,2]
[357958587,1744619443919,-500.0,0.00019178,2]
[357958588,1744619443930,-500.0,0.00019178,2]
[357958589,1744619443941,-500.0,0.00019178,2]
[357958590,1744619443952,-500.0,0.00019178,2]
[357958591,1744619443968,-500.0,0.00019178,2]
[357958592,1744619443977,-500.0,0.00019178,2]
[357958593,1744619443991,-500.0,0.00019178,2]
[357958594,1744619444002,-500.0,0.00019178,2]
[357958595,1744619444012,-220.37,0.00019178,2]
[357958596,1744619444022,-527.24754315,0.00019178,2]
[357958597,1744619444032,-229.70279848,0.00019178,2]
[357958598,1744619444041,-500.0,0.00019178,2]
[357958599,1744619444051,-500.0,0.00019178,2]
[357958600,1744619444060,-500.0,0.00019178,2]
[357958601,1744619444070,-500.0,0.00019178,2]
[357958602,1744619444079,-593.68617927,0.00019178,2]
[357958603,1744619444089,-500.0,0.00019178,2]
[357958604,1744619444098,-642.29442204,0.00019178,2]
[357958605,1744619444108,-510.40783894,0.00019178,2]
[357958606,1744619444117,-500.0,0.00019178,2]
[357958607,1744619444127,-538.33019467,0.00019178,2]
[357958608,1744619444136,-500.0,0.00019178,2]
[357958609,1744619444146,-511.87557806,0.00019178,2]
[357958610,1744619444156,-500.0,0.00019178,2]
[357958611,1744619444165,-500.0,0.00019178,2]
[357958612,1744619444176,-505.2086902,0.00019178,2]
[357958613,1744619444185,-500.0,0.00019178,2]
[357958614,1744619444195,-601.51,0.00019178,2]
[357958615,1744619444204,-548.18768546,0.00019178,2]
[357958616,1744619444213,-416.32431139,0.00019178,2]
[357958617,1744619444393,-83.67568861,0.00019178,2]
[357958618,1744619444403,-511.4373419,0.00019178,2]
[357958619,1744619444412,-530.88247775,0.00019178,2]
[357958620,1744619444421,-535.9947423,0.00019178,2]
[357958621,1744619444429,-500.0,0.00019178,2]
[357958622,1744619444438,-500.0,0.00019178,2]
[357958623,1744619444448,-500.0,0.00019178,2]
[357958624,1744619444457,-502.09320001,0.00019178,2]
[357958625,1744619444467,-500.0,0.00019178,2]
[357958626,1744619444476,-500.0,0.00019178,2]
[357958627,1744619444485,-2098.36580167,0.00019281,2]
[357958628,1744619444495,-15517.25,0.00019339,2]
[357958629,1744619444505,-3197.47,0.00019339,2]
[357958630,1744619444514,-150.99,0.00019339,2]
[357958631,1744619444525,-1573.89,0.00019339,2]
[357958632,1744619444535,-754.69435094,0.00019352,2]
[357958633,1744619444544,-754.69435088,0.00019413,2]
[357958634,1744619444554,-1072.49,0.00019451,2]
[357958635,1744619444563,-500.0,0.00019451,2]
[357958636,1744619444573,-175.19766969,0.00019452,2]
[357958637,1744619444583,-504.77405105,0.00019452,2]
[357958638,1744619444593,-500.0,0.00019452,2]
[357958639,1744619444602,-354.93712285,0.00019452,2]
[357958640,1744619444611,-500.0,0.00019452,2]
[357958641,1744619444621,-500.0,0.00019452,2]
[357958642,1744619444631,-500.0,0.00019452,2]
[357958643,1744619444640,-500.0,0.00019452,2]
[357958644,1744619444649,-500.0,0.00019452,2]
[357958645,1744619444659,-500.0,0.00019452,2]
[357958646,1744619444668,-500.0,0.00019452,2]
[357958647,1744619444678,-500.0,0.00019452,2]
[357958648,1744619444687,-500.0,0.00019452,2]
[357958649,1744619444697,-500.0,0.00019452,2]
[357958650,1744619444706,-500.0,0.00019452,2]
[357958651,1744619444716,-500.0,0.00019452,2]
[357958652,1744619444725,-500.0,0.00019452,2]
[357958653,1744619444734,-500.0,0.00019452,2]
[357958654,1744619444744,-500.0,0.00019452,2]
[357958655,1744619444753,-500.0,0.00019452,2]
[357958656,1744619444763,-500.0,0.00019452,2]
[357958657,1744619444775,-500.0,0.00019452,2]
[357958658,1744619444795,-500.0,0.00019452,2]
[357958659,1744619444804,-390.72571515,0.00019452,2]
[357958660,1744619444814,-500.0,0.00019452,2]
[357958661,1744619444823,-500.0,0.00019452,2]
[357958662,1744619444833,-500.0,0.00019452,2]
[357958663,1744619444842,-415.28,0.00019452,2]
[357958664,1744619444851,-500.0,0.00019452,2]
[357958665,1744619444861,-500.0,0.00019452,2]
[357958666,1744619444870,-554.33386073,0.00019452,2]
[357958667,1744619444879,-500.0,0.00019452,2]
[357958668,1744619444890,-595.93,0.00019452,2]
[357958669,1744619444899,-500.0,0.00019452,2]
[357958670,1744619444909,-418.31093338,0.00019452,2]
[357958671,1744619444920,-684.7,0.00019452,2]
[357958672,1744619444930,-515.76266217,0.00019452,2]
[357958673,1744619444940,-524.48685617,0.00019452,2]
[357958674,1744619444950,-406.56,0.00019452,2]
[357958675,1744619444959,-500.0,0.00019452,2]
[357958676,1744619444970,-486.32,0.00019452,2]
[357958677,1744619444980,-500.0,0.00019452,2]
[357958678,1744619444989,-500.0,0.00019452,2]
[357958679,1744619445001,-500.0,0.00019452,2]
[357958680,1744619445011,-500.0,0.00019452,2]
[357958681,1744619445021,-500.0,0.00019452,2]
[357958682,1744619445031,-500.0,0.00019452,2]
[357958683,1744619445040,-560.72790628,0.00019452,2]
[357958684,1744619445050,-500.0,0.00019452,2]
[357958685,1744619445060,-500.0,0.00019452,2]
[357958686,1744619445069,-500.0,0.00019452,2]
[357958687,1744619445078,-199.03463151,0.00019452,2]
[357958688,1744619445088,-500.0,0.00019452,2]
[357958689,1744619445098,-432.59301307,0.00019452,2]
[357958690,1744619445107,-500.0,0.00019452,2]
[357958691,1744619445117,-500.0,0.00019452,2]
[357958692,1744619445126,-527.14851133,0.00019452,2]
[357958693,1744619445136,-500.0,0.00019452,2]
[357958694,1744619445145,-500.0,0.00019452,2]
[357958695,1744619445155,-500.0,0.00019452,2]
[357958696,1744619445164,-500.0,0.00019452,2]
[357958697,1744619445174,-500.0,0.00019452,2]
[357958698,1744619445183,-500.0,0.00019452,2]
[357958699,1744619445193,-524.63404989,0.00019452,2]
[357958700,1744619445202,-500.0,0.00019452,2]
[357958701,1744619445212,-557.4,0.00019452,2]
[357958702,1744619445222,-500.0,0.00019452,2]
[357958703,1744619445231,-500.0,0.00019452,2]
[357958704,1744619445241,-500.0,0.00019452,2]
[357958705,1744619445251,-500.0,0.00019452,2]
[357958706,1744619445260,-500.0,0.00019452,2]
[357958707,1744619445271,-596.22917166,0.00019452,2]
[357958708,1744619445280,-500.0,0.00019452,2]
[357958709,1744619445289,-500.0,0.00019452,2]
[357958710,1744619445299,-500.0,0.00019452,2]
[357958711,1744619445308,-500.0,0.00019452,2]
[357958713,1744619445318,-551.73,0.00019452,2]
[357958715,1744619445327,-500.0,0.00019452,2]
[357958716,1744619445337,-500.0,0.00019452,2]
[357958717,1744619445346,-500.0,0.00019452,2]
[357958719,1744619445355,-500.0,0.00019452,2]
[357958721,1744619445365,-500.0,0.00019452,2]
[357958723,1744619445374,-512.36,0.00019452,2]
[357958724,1744619445383,-500.0,0.00019452,2]
[357958725,1744619445393,-510.25170695,0.00019452,2]
[357958726,1744619445402,-500.0,0.00019452,2]
[357958727,1744619445412,-500.0,0.00019452,2]
[357958728,1744619445421,-500.0,0.00019452,2]
[357958729,1744619445431,-500.0,0.00019452,2]
[357958730,1744619445440,-233.65,0.00019452,2]
[357958731,1744619445450,-500.0,0.00019452,2]
[357958732,1744619445460,-500.0,0.00019452,2]
[357958733,1744619445470,-500.0,0.00019452,2]
[357958734,1744619445480,-500.0,0.00019452,2]
[357958735,1744619445490,-500.0,0.00019452,2]
[357958736,1744619445499,-566.39,0.00019452,2]
[357958737,1744619445509,-500.0,0.00019452,2]
[357958738,1744619445519,-500.0,0.00019452,2]
[357958739,1744619445529,-500.0,0.00019452,2]
[357958740,1744619445538,-500.0,0.00019452,2]
[357958741,1744619445548,-635.19,0.00019452,2]
[357958742,1744619445558,-500.0,0.00019452,2]
[357958743,1744619445567,-574.72,0.00019452,2]
[357958744,1744619445577,-500.0,0.00019452,2]
[357958745,1744619445587,-500.0,0.00019452,2]
[357958746,1744619445597,-546.31850816,0.00019452,2]
[357958747,1744619445606,-500.0,0.00019452,2]
[357958748,1744619445616,-500.0,0.00019452,2]
[357958749,1744619445626,-500.0,0.00019452,2]
[357958750,1744619445635,-500.0,0.00019452,2]
[357958751,1744619445645,-500.0,0.00019452,2]
[357958752,1744619445656,-559.33,0.00019452,2]
[357958753,1744619445666,-485.25,0.00019452,2]
[357958754,1744619445677,-514.77124932,0.00019452,2]
[357958755,1744619445687,-500.0,0.00019452,2]
[357958756,1744619445697,-524.85605284,0.00019452,2]
[357958757,1744619445707,-500.0,0.00019452,2]
[357958758,1744619445717,-500.0,0.00019452,2]
[357958759,1744619445727,-500.0,0.00019452,2]
[357958760,1744619445737,-500.0,0.00019452,2]
[357958761,1744619445749,-500.0,0.00019452,2]
[357958762,1744619445763,-572.44,0.00019452,2]
[357958763,1744619445780,-500.0,0.00019452,2]
[357958764,1744619445794,-644.18,0.00019452,2]
[357958765,1744619445805,-558.04,0.00019452,2]
[357958766,1744619445819,-500.0,0.00019452,2]
[357958767,1744619445833,-500.0,0.00019452,2]
[357958768,1744619445847,-500.0,0.00019452,2]
[357958769,1744619445860,-40124.32,0.00019452,2]
[357958770,1744619445874,-500.0,0.00019452,2]
[357958771,1744619445889,-560.83,0.00019452,2]
[357958772,1744619445901,-500.0,0.00019452,2]
[357958773,1744619445913,-500.0,0.00019452,2]
[357958774,1744619445926,-1731.87,0.00019452,2]
[357958775,1744619445940,-1021.4,0.00019452,2]
[357958776,1744619445952,-500.0,0.00019452,2]
[357958777,1744619445967,-500.0,0.00019452,2]
[357958778,1744619445982,-500.0,0.00019452,2]
[357958780,1744619445996,-500.0,0.00019452,2]
[357958782,1744619446011,-444.82,0.00019452,2]
[357958783,1744619446026,-332.56,0.00019452,2]
[357958784,1744619446041,-500.0,0.00019452,2]
[357958785,1744619446053,-500.0,0.00019452,2]
[357958786,1744619446066,-693.16,0.00019452,2]
[357958787,1744619446079,-500.0,0.00019452,2]
[357958788,1744619446093,-500.0,0.00019452,2]
[357958790,1744619446107,-4469.34,0.00019452,2]
[357958791,1744619446120,-500.0,0.00019452,2]
[357958792,1744619446134,-510.6,0.00019452,2]
[357958793,1744619446148,-183.11,0.00019452,2]
[357958794,1744619446160,-549.81,0.00019452,2]
[357958795,1744619446172,-349.47,0.00019452,2]
[357958796,1744619446182,-409.7,0.00019452,2]
[357958797,1744619446193,-311.74,0.00019452,2]
[357958798,1744619446208,-627.07,0.00019452,2]
[357958799,1744619446222,-428.08,0.00019452,2]
[357958800,1744619446234,-505.87,0.00019452,2]
[357958801,1744619446245,-500.0,0.00019452,2]
[357958802,1744619446256,-500.0,0.00019452,2]
[357958803,1744619446269,-500.0,0.00019452,2]
[357958804,1744619446283,-239.31,0.00019452,2]
[357958805,1744619446295,-387.17664267,0.00019452,2]
[357958806,1744619446308,-500.0,0.00019452,2]
[357958807,1744619446320,-949.84,0.00019452,2]
[357958808,1744619446332,-500.0,0.00019452,2]
[357958809,1744619446344,-500.0,0.00019452,2]
[357958810,1744619446356,-500.0,0.00019452,2]
[357958811,1744619446368,-500.0,0.00019452,2]
[357958812,1744619446380,-500.0,0.00019452,2]
[357958813,1744619446392,-500.0,0.00019452,2]
[357958814,1744619446406,-500.0,0.00019452,2]
[357958815,1744619446418,-500.0,0.00019452,2]
[357958816,1744619446430,-500.0,0.00019452,2]
[357958817,1744619446441,-500.0,0.00019452,2]
[357958818,1744619446453,-500.0,0.00019452,2]
[357958819,1744619446465,-593.84455762,0.00019452,2]
[357958820,1744619446478,-524.59621713,0.00019452,2]
[357958821,1744619446490,-528.09546063,0.00019452,2]
[357958822,1744619446502,-500.0,0.00019452,2]
[357958823,1744619446515,-500.0,0.00019452,2]
[357958824,1744619446529,-500.0,0.00019452,2]
[357958825,1744619446541,-500.0,0.00019452,2]
[357958826,1744619446553,-440.40168611,0.00019452,2]
[357958827,1744619446565,-500.0,0.00019452,2]
[357958828,1744619446577,-179.39370182,0.00019452,2]
[357958829,1744619446589,-259.83630083,0.00019452,2]
[357958830,1744619446601,-1157.24,0.00019452,2]
[357958831,1744619446612,-500.0,0.00019452,2]
[357958832,1744619446624,-500.0,0.00019452,2]
[357958833,1744619446636,-783.41,0.00019452,2]
[357958834,1744619446649,-500.0,0.00019452,2]
[357958835,1744619446662,-508.95217236,0.00019452,2]
[357958836,1744619446674,-500.0,0.00019452,2]
[357958837,1744619446686,-500.0,0.00019452,2]
[357958838,1744619446697,-500.0,0.00019452,2]
[357958839,1744619446709,-500.0,0.00019452,2]
[357958840,1744619446721,-500.0,0.00019452,2]
[357958841,1744619446733,-1271.67,0.00019452,2]
[357958842,1744619446745,-500.0,0.00019452,2]
[357958843,1744619446758,-603.84,0.00019452,2]
[357958844,1744619446771,-500.0,0.00019452,2]
[357958845,1744619446783,-500.0,0.00019452,2]
[357958846,1744619446795,-500.0,0.00019452,2]
[357958847,1744619446807,-300.90561804,0.00019452,2]
[357958848,1744619446819,-500.0,0.00019452,2]
[357958849,1744619446830,-601.51,0.00019452,2]
[357958850,1744619446842,-586.50212914,0.00019452,2]
[357958851,1744619446854,-500.0,0.00019452,2]
[357958852,1744619446865,-238.18,0.00019452,2]
[357958853,1744619446877,-500.0,0.00019452,2]
[357958854,1744619446889,-754.69435088,0.00019474,2]
[357958855,1744619446901,-161.3,0.000195,2]
[357958856,1744619446913,-754.69435088,0.00019535,2]
[357958857,1744619446927,-754.69435088,0.00019596,2]
[357958858,1744619446939,-754.69435088,0.00019656,2]
[357958859,1744619446951,-361.61015629,0.00019687,2]
[357958860,1744619446963,-8218.67814809,0.00019697,2]
[357958861,1744619446975,-1202.23689031,0.00019714,2]
[357958862,1744619446987,-754.69435088,0.00019717,2]
[357958863,1744619447000,-500.0,0.00019725,2]
[357958864,1744619447012,-500.0,0.00019725,2]
[357958865,1744619447027,-2137.17,0.00019725,2]
[357958866,1744619447039,-500.0,0.00019725,2]
[357958867,1744619447051,-500.0,0.00019726,2]
[357958868,1744619447063,-500.0,0.00019726,2]
[357958869,1744619447075,-500.0,0.00019726,2]
[357958870,1744619447088,-500.0,0.00019726,2]
[357958871,1744619447101,-500.0,0.00019726,2]
[357958872,1744619447113,-500.0,0.00019726,2]
[357958873,1744619447125,-605.26242689,0.00019726,2]
[357958874,1744619447138,-500.0,0.00019726,2]
[357958875,1744619447150,-500.0,0.00019726,2]
[357958876,1744619447162,-500.0,0.00019726,2]
[357958877,1744619447173,-500.0,0.00019726,2]
[357958878,1744619447183,-237.02,0.00019726,2]
[357958879,1744619447192,-500.0,0.00019726,2]
[357958880,1744619447202,-500.0,0.00019726,2]
[357958881,1744619447211,-235.15065004,0.00019726,2]
[357958882,1744619447221,-684.7,0.00019726,2]
[357958883,1744619447231,-500.0,0.00019726,2]
[357958884,1744619447241,-500.0,0.00019726,2]
[357958885,1744619447251,-500.0,0.00019726,2]
[357958886,1744619447261,-500.0,0.00019726,2]
[357958887,1744619447274,-500.0,0.00019726,2]
[357958888,1744619447283,-500.0,0.00019726,2]
[357958889,1744619447293,-500.0,0.00019726,2]
[357958890,1744619447302,-591.12,0.00019726,2]
[357958891,1744619447312,-500.0,0.00019726,2]
[357958892,1744619447322,-500.0,0.00019726,2]
[357958893,1744619447332,-500.0,0.00019726,2]
[357958894,1744619447342,-557.4,0.00019726,2]
[357958895,1744619447352,-500.0,0.00019726,2]
[357958896,1744619447362,-539.76,0.00019726,2]
[357958897,1744619447372,-500.0,0.00019726,2]
[357958898,1744619447382,-500.0,0.00019726,2]
[357958899,1744619447621,-500.0,0.00019726,2]
[357958900,1744619447646,-500.0,0.00019726,2]
[357958901,1744619447659,-500.0,0.00019726,2]
[357958902,1744619447668,-500.0,0.00019726,2]
[357958903,1744619447678,-500.0,0.00019726,2]
[357958904,1744619447687,-475.38194582,0.00019726,2]
[357958905,1744619447696,-500.0,0.00019726,2]
[357958906,1744619447706,-500.0,0.00019726,2]
[357958907,1744619447715,-218.14006173,0.00019726,2]
[357958908,1744619447726,-500.0,0.00019726,2]
[357958909,1744619447736,-500.0,0.00019726,2]
[357958910,1744619447745,-500.0,0.00019726,2]
[357958911,1744619447755,-500.0,0.00019726,2]
[357958912,1744619447764,-500.0,0.00019726,2]
[357958913,1744619447775,-574.72,0.00019726,2]
[357958914,1744619447794,-237.993386,0.00019726,2]
[357958915,1744619447803,-500.0,0.00019726,2]
[357958916,1744619447813,-559.33,0.00019726,2]
[357958917,1744619447823,-500.0,0.00019726,2]
[357958918,1744619447832,-534.57,0.00019726,2]
[357958919,1744619447841,-572.44,0.00019726,2]
[357958920,1744619447851,-558.04,0.00019726,2]
[357958921,1744619447860,-500.0,0.00019726,2]
[357958922,1744619447870,-40124.32,0.00019726,2]
[357958923,1744619447879,-560.83,0.00019726,2]
[357958924,1744619447889,-500.0,0.00019726,2]
[357958925,1744619447898,-500.0,0.00019726,2]
[357958926,1744619447908,-1731.87,0.00019726,2]
[357958927,1744619447919,-1021.4,0.00019726,2]
[357958928,1744619447932,-500.0,0.00019726,2]
[357958929,1744619447941,-500.0,0.00019726,2]
[357958930,1744619447951,-500.0,0.00019726,2]
[357958931,1744619447961,-500.0,0.00019726,2]
[357958932,1744619447970,-500.0,0.00019726,2]
[357958933,1744619447980,-693.16,0.00019726,2]
[357958934,1744619447990,-4469.34,0.00019726,2]
[357958935,1744619448000,-500.0,0.00019726,2]
[357958936,1744619448010,-500.0,0.00019726,2]
[357958937,1744619448022,-949.84,0.00019726,2]
[357958938,1744619448032,-500.0,0.00019726,2]
[357958939,1744619448044,-500.0,0.00019726,2]
[357958940,1744619448055,-500.0,0.00019726,2]
[357958941,1744619448065,-500.0,0.00019726,2]
[357958942,1744619448074,-281.07,0.00019726,2]
[357958943,1744619448084,-500.0,0.00019726,2]
[357958944,1744619448094,-500.0,0.00019726,2]
[357958945,1744619448103,-500.0,0.00019726,2]
[357958946,1744619448112,-500.0,0.00019726,2]
[357958947,1744619448121,-1157.24,0.00019726,2]
[357958948,1744619448130,-500.0,0.00019726,2]
[357958949,1744619448139,-783.41,0.00019726,2]
[357958950,1744619448147,-500.0,0.00019726,2]
[357958951,1744619448157,-500.0,0.00019726,2]
[357958952,1744619448166,-236.01,0.00019726,2]
[357958953,1744619448176,-500.0,0.00019726,2]
[357958954,1744619448185,-500.0,0.00019726,2]
[357958955,1744619448193,-500.0,0.00019726,2]
[357958956,1744619448203,-1271.67,0.00019726,2]
[357958957,1744619448211,-500.0,0.00019726,2]
[357958958,1744619448220,-500.0,0.00019726,2]
[357958959,1744619448230,-500.0,0.00019726,2]
[357958960,1744619448241,-601.51,0.00019726,2]
[357958961,1744619448260,-500.0,0.00019726,2]
[357958962,1744619448282,-360.3,0.00019726,2]
[357958963,1744619448291,-511.38566245,0.00019726,2]
[357958964,1744619448299,-8218.67814809,0.00019764,2]
[357958965,1744619448309,-754.69435088,0.00019778,2]
[357958966,1744619448318,-8218.67814809,0.00019783,2]
[357958967,1744619448327,-1466.4806448,0.00019799,2]
[357958968,1744619448336,-100857.30836725,0.000198,2]
[357958969,1744619448346,-12500.0,0.00019803,2]
[357958970,1744619448356,-1036.32638661,0.00019809,2]
[357958971,1744619448365,-12500.0,0.00019812,2]
[357958972,1744619448374,-12500.0,0.00019821,2]
[357958973,1744619448384,-361.6101563,0.00019822,2]
[357958974,1744619448393,-12500.0,0.0001983,2]
[357958975,1744619448402,-12500.0,0.00019838,2]
[357958976,1744619448410,-393.86765651,0.00019839,2]
[357958977,1744619448419,-754.69435088,0.00019839,2]
[357958978,1744619448429,-12500.0,0.00019847,2]
[357958979,1744619448439,-12500.0,0.00019856,2]
[357958980,1744619448448,-500.0,0.00019863,2]
[357958981,1744619448457,-500.0,0.00019863,2]
[357958982,1744619448467,-500.0,0.00019863,2]
[357958983,1744619448476,-500.0,0.00019863,2]
[357958984,1744619448485,-500.0,0.00019863,2]
[357958985,1744619448497,-500.0,0.00019863,2]
[357958986,1744619448507,-500.0,0.00019863,2]
[357958987,1744619448516,-500.0,0.00019863,2]
[357958988,1744619448528,-205.98888728,0.00019863,2]
[357958989,1744619448538,-500.0,0.00019863,2]
[357958990,1744619448547,-500.0,0.00019863,2]
[357958991,1744619448558,-500.0,0.00019863,2]
[357958992,1744619448568,-500.0,0.00019863,2]
[357958993,1744619448577,-500.0,0.00019863,2]
[357958994,1744619448587,-500.0,0.00019863,2]
[357958995,1744619448596,-500.0,0.00019863,2]
[357958996,1744619448606,-500.0,0.00019863,2]
[357958997,1744619448615,-500.0,0.00019863,2]
[357958998,1744619448624,-500.0,0.00019863,2]
[357958999,1744619448634,-500.0,0.00019863,2]
[357959000,1744619448643,-200.0,0.00019863,2]
[357959001,1744619448653,-500.0,0.00019863,2]
[357959002,1744619448663,-12500.0,0.00019865,2]
[357959003,1744619448672,-2526.181,0.00019869,2]
[357959004,1744619448682,-191.71584393,0.00019873,2]
[357959005,1744619448692,-12500.0,0.00019874,2]
[357959006,1744619448701,-12500.0,0.00019882,2]
[357959007,1744619448711,-12500.0,0.00019891,2]
[357959008,1744619448721,-1072.49,0.00019899,2]
[357959009,1744619448731,-422.93771787,0.00019899,2]
[357959010,1744619448741,-12500.0,0.000199,2]
[357959011,1744619448750,-1760.46444872,0.000199,2]
[357959012,1744619448760,-375.23358628,0.000199,2]
[357959013,1744619448781,-1036.32638661,0.000199,2]
[357959014,1744619448803,-754.69435088,0.000199,2]
[357959015,1744619448816,-203.61373272,0.000199,2]
[357959016,1744619448826,-500.0,0.00019973,2]
[357959017,1744619448837,-500.0,0.00019973,2]
[357959018,1744619448847,-504.77074405,0.00019973,2]
[357959019,1744619448857,-538.77045901,0.00019973,2]
[357959020,1744619448866,-500.50744045,0.00019973,2]
[357959021,1744619448876,-154.63566114,0.00019973,2]
[357959022,1744619448885,-159.88511112,0.00019973,2]
[357959023,1744619448895,-502.90277105,0.00019973,2]
[357959024,1744619448904,-501.49922872,0.00019973,2]
[357959025,1744619448914,-500.0,0.00019973,2]
[357959026,1744619448927,-500.0,0.00019973,2]
[357959027,1744619448937,-155.90429632,0.0001999,2]
[357959028,1744619448947,-155.90429632,0.0001999,2]
[357959029,1744619448956,-155.90429632,0.0001999,2]
[357959030,1744619448966,-300.0,0.00019999,2]
[357959031,1744619448976,-4702.1212245,0.00019999,2]
[357959032,1744619448985,-56648.65,0.00019999,2]
[357959033,1744619448994,-500.0,0.00019999,2]
[357959034,1744619449005,-500.0,0.00019999,2]
[357959035,1744619449014,-500.0,0.00019999,2]
[357959036,1744619449027,-500.0,0.00019999,2]
[357959037,1744619449037,-500.0,0.00019999,2]
[357959038,1744619449047,-500.0,0.00019999,2]
[357959039,1744619449056,-500.0,0.00019999,2]